Cogmind - Beta 13 @@@ ROGUE MODE // 2024.04.05 @ 16:35:50 Player: DarkCat Result: Self-destructed Performance ------------- Evolutions (1) 500 Regions Visited (3) 600 Robots Destroyed (8) 40 Value Destroyed (199) 199 Prototype IDs (0) 0 Alien Tech Used (0) 0 Bonus (0) 0 TOTAL SCORE: 1339 Bonus ------- None Cogmind --------- Core Integrity 140/400 Matter 291/450 Energy 100/100 System Corruption 0% Temperature Cool (0) Movement Walking (400) Ox4 Location -9/Mines Parts ------- > --- POWER (1) -------- (None) > --- PROPULSION (2) --- Aluminum Leg > --- UTILITY (4) ------ Improved Heat Sink High-capacity Storage Unit Large Matter Pod Signal Interpreter > --- WEAPON (2) ------- (None) > --- INVENTORY (20) --- Large Matter Pod (0) Structural Scanner Visual Processing Unit Peak State ------------ > --- POWER ------------ Light Nuclear Core > --- PROPULSION ------- Aluminum Leg Improved Aluminum Leg > --- UTILITY ---------- Improved Heat Sink High-capacity Storage Unit Large Matter Pod Signal Interpreter > --- WEAPON ----------- Assault Rifle Light Assault Rifle > --- INVENTORY -------- Ion Engine Aluminum Leg Aluminum Leg Improved Heat Sink Large Matter Pod Structural Scanner Visual Processing Unit [Rating: 15] Favorites ----------- Power Light Nuclear Core Engine Light Ion Engine Power Core Light Nuclear Core Propulsion Aluminum Leg Leg Aluminum Leg Utility Large Matter Pod Device Improved Heat Sink Storage Large Matter Pod Processor Signal Interpreter Weapon Light Assault Rifle Energy Gun Small Laser Ballistic Gun Light Assault Rifle Build | -11 -10 -9 -9 ------- Run | Yrd Mat Mat Min Slots Evolved 2 | . . 2 . Power . | . . . . Propulsion . | . . . . Utility 2 | . . 2 . Weapon . | . . . . Parts Attached 24 | 6 6 8 4 Power 5 | 1 2 1 1 Engine 3 | 1 1 1 . Core 2 | . 1 . 1 Reactor . | . . . . Propulsion 7 | 2 1 2 2 Treads . | . . . . Leg 7 | 2 1 2 2 Wheel . | . . . . Hover . | . . . . Flight . | . . . . Utility 8 | 1 2 4 1 Device 4 | . 1 2 1 Storage 3 | 1 1 1 . Processor 1 | . . 1 . Hackware . | . . . . Protection . | . . . . Artifact . | . . . . Weapon 4 | 2 1 1 . Energy Gun 1 | . . 1 . Energy Cannon . | . . . . Ballistic Gun 3 | 2 1 . . Ballistic Cannon . | . . . . Launcher . | . . . . Special Weapon . | . . . . Impact Weapon . | . . . . Slashing Weapon . | . . . . Piercing Weapon . | . . . . Special Melee Weapon . | . . . . Unidentified Prototypes . | . . . . Parts Lost 10 | . 1 4 5 Power 3 | . 1 . 2 Propulsion 3 | . . . 3 Utility 2 | . . 2 . Weapon 2 | . . 2 . Highest Loss Streak 5 | . 1 2 5 To Critical Strikes . | . . . . Average Slot Usage (%) 93 | . 95 97 69 Engine 3 | . 7 1 3 Core 7 | . 4 9 6 Leg 23 | . 28 22 20 Device 9 | . 9 10 6 Storage 20 | . 17 22 22 Processor 8 | . . 11 11 Energy Gun 2 | . . 4 . Ballistic Gun 17 | . 28 15 . Naked Turns . | . . . . Heaviest Build 52 | 10 16 52 49 Greatest Support 23 | 20 20 23 23 Greatest Overweight (x) 4 | . . 2 4 Average Overweight (x) 1 | . . 1 2 Largest Inventory Capacity 20 | 8 8 20 20 Average Capacity 15 | 7 8 19 20 Most Carried 8 | 5 8 8 7 Average Carried 5 | 1 3 6 4 Final Capacity 20 | 8 8 20 20 Final Carried 8 | 2 8 7 3 Class Distribution -------------------- 56% | Scavenger-Mutant 43% | Mutant Dominant Class ---------------- Mutant | -10/Materials Scavenger-Mutant | -9/Materials Mutant | -9/Mines Resources | -11 -10 -9 -9 ----------- Run | Yrd Mat Mat Min Matter Collected 492 | 195 209 88 . Remotely . | . . . . Salvage Created 251 | . 163 88 . Parts 19 | . 14 5 . Haulers Intercepted . | . . . . Recyclers Shooed . | . . . . Parts Field Recycled . | . . . . Retrieved Matter . | . . . . Parts Self-Destructed . | . . . . Prevented . | . . . . Kills | -11 -10 -9 -9 ------- Run | Yrd Mat Mat Min Combat Hostiles Destroyed 6 | . 4 2 . Guns 6 | . 4 2 . Classes Destroyed 4 | . 4 . . Worker 1 | . 1 . . Watcher 1 | . 1 . . Swarmer 2 | . 2 . . Grunt 4 | . 2 2 . Best Kill Streak 6 | . 6 2 . Combat Bots Only 4 | . 4 2 . Max Kills in Single Turn 1 | . 1 1 . Gunslinging . | . . . . Exploded . | . . . . Melee . | . . . . Uniques/NPCs Destroyed . | . . . . Combat | -11 -10 -9 -9 -------- Run | Yrd Mat Mat Min Hostile Shots Fired 194 | . 61 59 74 Missed 63 | . 22 21 20 Damage Taken 1336 | . 345 547 444 Core 336 | . 76 124 136 Absorbed by Shields . | . . . . Core Remaining (%) 84 | 100 69 . . Volleys Fired 34 | . 20 14 . Largest 2 | . 2 2 . Hottest 60 | . 40 60 . Shots Fired 65 | . 40 25 . Gun 65 | . 40 25 . Cannon . | . . . . Launcher . | . . . . Special . | . . . . Kinetic 59 | . 40 19 . Thermal 6 | . . 6 . Explosive . | . . . . Electromagnetic . | . . . . Robot Hit Streak 6 | . 6 6 . Robot Miss Streak 5 | . 4 5 . Penetration Max . | . . . . Secondary Targets 2 | . 1 1 . Max Gunslinging Chain 1 | . 1 1 . Shots Hit Robots 38 | . 22 16 . Core Hits 17 | . 12 5 . Critical Kills . | . . . . Critical Parts Destroyed . | . . . . Critical Strikes . | . . . . Melee Attacks . | . . . . Impact . | . . . . Slashing . | . . . . Piercing . | . . . . Sneak Attacks . | . . . . Combat Hostiles . | . . . . Follow-up Attacks . | . . . . Damage Inflicted 384 | . 209 175 . Guns 384 | . 209 175 . Cannons . | . . . . Explosions . | . . . . Melee . | . . . . Ramming . | . . . . Kinetic 342 | . 209 133 . Thermal 42 | . . 42 . Explosive . | . . . . Electromagnetic . | . . . . Impact . | . . . . Slashing . | . . . . Piercing . | . . . . Highest Corruption . | . . . . Average Corruption . | . . . . Corruption Purged . | . . . . Corruption Blocked . | . . . . Overload Shots . | . . . . Overflow Damage . | . . . . Projectiles . | . . . . Explosions . | . . . . Melee . | . . . . Knockbacks . | . . . . Impact . | . . . . Kinetic . | . . . . Secondary . | . . . . Self-Inflicted Damage . | . . . . Shots . | . . . . Rammed . | . . . . Targets Rammed . | . . . . Kicked . | . . . . Crushed . | . . . . Highest Temperature 13 | . 6 13 . Average Temperature 6 | . 4 9 . Received Heat Transfer 294 | . 69 225 . Siege Activations . | . . . . Robots Corrupted . | . . . . Combat Hostiles . | . . . . Parts Fried . | . . . . Impact Corruptions . | . . . . Robots Melted . | . . . . Combat Hostiles . | . . . . Parts Melted . | . . . . Heat Transferred 100 | . . 100 . Parts Sabotaged . | . . . . Parts Stolen . | . . . . Parts Stripped . | . . . . Power Chain Reactions . | . . . . Alert | -11 -10 -9 -9 ------- Run | Yrd Mat Mat Min Peak Influence 134 | . 117 134 40 Initial 49 | . . 49 40 Average 66 | . 63 87 16 Maximum Alert Level . | . . . . Low Security (%) 100 | 100 100 100 100 Level 1 . | . . . . Level 2 . | . . . . Level 3 . | . . . . Level 4 . | . . . . Level 5 . | . . . . High Security . | . . . . Max Security . | . . . . Squads Dispatched . | . . . . Investigation . | . . . . Extermination . | . . . . Reinforcement . | . . . . Assault . | . . . . Garrison . | . . . . Intercept . | . . . . Searches Triggered . | . . . . Construction Impeded . | . . . . Haulers Reinforced . | . . . . Active Scanning Responses . | . . . . Cargo Convoy Interrupts . | . . . . Stealth | -11 -10 -9 -9 --------- Run | Yrd Mat Mat Min Distress Signals . | . . . . Communications Jammed . | . . . . Distress Signals . | . . . . Times Spotted 13 | . 6 4 3 Peak Tracking Total 5 | . 5 3 3 Tactical Retreats 1 | . . 1 . Traps | -11 -10 -9 -9 ------- Run | Yrd Mat Mat Min Traps Triggered . | . . . . Indirectly . | . . . . Trap Hack Attempts . | . . . . Triggered . | . . . . Disarmed . | . . . . Reprogrammed . | . . . . Reused . | . . . . Traps Extracted . | . . . . Installed . | . . . . Triggered . | . . . . Machines | -11 -10 -9 -9 ---------- Run | Yrd Mat Mat Min Machines Disabled . | . . . . Max in Single Turn . | . . . . Machines Repaired . | . . . . Machines Dismantled . | . . . . Machines Sabotaged . | . . . . Overloaded Fab Kills . | . . . . Hacking | -11 -10 -9 -9 --------- Run | Yrd Mat Mat Min Machines Accessed 4 | . 2 2 . Terminals 4 | . 2 2 . Fabricators . | . . . . Repair Stations . | . . . . Recycling Units . | . . . . Scanalyzers . | . . . . Garrison Access . | . . . . Total Hacks 6 | . 3 3 . Successful 5 | . 3 2 . Failed 1 | . . 1 . Catastrophic . | . . . . Database Lockouts . | . . . . Manual . | . . . . Terminals 6 | . 3 3 . Fabricators . | . . . . Repair Stations . | . . . . Recycling Units . | . . . . Scanalyzers . | . . . . Garrison Access . | . . . . Terminal Hacks 5 | . 3 2 . Record 1 | . . 1 . Alert Level 3 | . 2 1 . Locate Traps 1 | . 1 . . Fabricator Hacks . | . . . . Repair Station Hacks . | . . . . Recycling Unit Hacks . | . . . . Scanalyzer . | . . . . Garrison Access Hacks . | . . . . Unauthorized Hacks . | . . . . Terminals . | . . . . Fabricators . | . . . . Repair Stations . | . . . . Recycling Units . | . . . . Scanalyzers . | . . . . Garrison Access . | . . . . Data Cores Recovered . | . . . . Used . | . . . . Hacking Detections 1 | . . 1 . Full Trace Events . | . . . . Feedback Events . | . . . . Feedback Blocked . | . . . . Robot Schematics Acquired . | . . . . Robots Built . | . . . . Authchips . | . . . . Time . | . . . . Total Robot Build Rating . | . . . . Part Schematics Acquired . | . . . . Parts Built . | . . . . Authchips . | . . . . Time . | . . . . Total Part Build Rating . | . . . . Parts Repaired . | . . . . Time . | . . . . Parts Recycled . | . . . . Recycled Matter . | . . . . Retrieved Matter . | . . . . Retrieved Components . | . . . . Parts Scanalyzed . | . . . . Part Schematics Acquired . | . . . . Parts Damaged . | . . . . Bothacking | -11 -10 -9 -9 ------------ Run | Yrd Mat Mat Min Used RIF Installer . | . . . . Robots Hacked . | . . . . Non-combat . | . . . . Combat . | . . . . Robot Hacks Applied . | . . . . Relay Couplers Released . | . . . . Fabnet Peak Effective % . | . . . . Robots Rewired . | . . . . Allies Hacked . | . . . . Hacks Repelled . | . . . . Allies | -11 -10 -9 -9 -------- Run | Yrd Mat Mat Min Total Allies . | . . . . Largest Group . | . . . . Highest-Rated Group . | . . . . Highest-Rated Ally . | . . . . Total Orders . | . . . . Ally Attacks . | . . . . Total Damage . | . . . . Kills . | . . . . Allies Corrupted . | . . . . Allies Melted . | . . . . Intel | -11 -10 -9 -9 ------- Run | Yrd Mat Mat Min Robot Analysis Total . | . . . . Derelict Logs Recovered . | . . . . Drone Launches . | . . . . Drone Recoveries . | . . . . Exploration | -11 -10 -9 -9 ------------- Run | Yrd Mat Mat Min Turns Passed 703 | 60 176 394 73 Spaces Moved 274 | 45 85 120 24 Core 10 | 10 . . . Treads . | . . . . Legs 264 | 35 85 120 24 Wheels . | . . . . Hover . | . . . . Flight . | . . . . Fastest Speed 50 | 50 120 120 260 Average Speed 187 | 104 120 251 265 Slowest Speed 400 | 120 120 260 400 Overloaded Moves . | . . . . Propulsion Burnouts . | . . . . Robots Hopped . | . . . . Cave-ins Triggered . | . . . . Exploration Rate (%) 10 | 3 18 13 8 Regions Visited 3 Branch Regions 1 Pre-discovered Areas . | . . . . Known Exits Taken 1 | . . 1 . Unknown Exits Taken 2 | 1 1 . . Scrap Searched . | . . . . Spaces Dug . | . . . . Terrain Destroyed . | . . . . Melee . | . . . . Projectile . | . . . . AOE . | . . . . Terrain Rammed . | . . . . Walls Destroyed . | . . . . Machines Disabled . | . . . . Actions | -11 -10 -9 -9 --------- Run | Yrd Mat Mat Min Total 404 | 58 124 189 33 Wait 41 | . . 36 5 Move 271 | 44 84 119 24 Hop . | . . . . Pick Up 26 | 8 11 7 . Fast Attach . | . . . . Attach 15 | 6 2 3 4 Detach . | . . . . Swap 9 | . 4 5 . Drop 8 | . 3 5 . Fire 34 | . 20 14 . Melee . | . . . . Ram . | . . . . Kick . | . . . . Crush . | . . . . Escape Stasis . | . . . . Rewire . | . . . . Trap . | . . . . Miscellaneous . | . . . . Route ------- -11/Scrapyard -10/Materials -9/Materials -9/Mines History --------- Turn | Location | Event 3 | -11/Scrapyard | Discovered new exit (range 15) 61 | -11/Scrapyard | Entered Materials 222 | -10/Materials | Discovered new exit (range 13) 237 | -10/Materials | Entered another Materials area 237 | -9/Materials | Evolved 2 slots: Utility x2 525 | -9/Materials | Discovered new exit (range 15) 539 | -9/Materials | Build established: Scavenger-Mutant 628 | -9/Materials | Identified exit to Mines 631 | -9/Materials | Entered Mines 664 | -9/Mines | Core integrity fell below 50% 692 | -9/Mines | Lost 5 parts (1p2n1u1w) 704 | -9/Mines | Self-destructed Last Messages --------------- 00544_ K-01 Serf collects debris. 00575_ Critical hit (Burn: +37). 00575_ Processing Tank disabled. 00581_ Assault Rifle destroyed. 00581_ Processing Tank disabled. 00614_ Imp. Heat Sink destroyed. 00617_ Sml. Laser destroyed. 00628_ EXIT=IDENTIFIED: MINES 00628_ Machine disabled. 00630_ K-01 Serf collects debris. LOCATION=MINES GOAL=ESCAPE 00633_ Imp. Aluminum Leg destroyed. 00646_ S-10 Pest destroyed. 00659_ Ion Engine destroyed. 00661_ Aluminum Leg destroyed. 00692_ K-01 Serf collects debris. 00695_ Aluminum Leg destroyed. 00701_ K-01 Serf collects debris. 00702_ Lgt. Nuclear Core destroyed. Map ----- +----------------------------------------------------+ | ?????????????????????????????????? | | ?????????????????????????????????? | | ?????????????????????????????????? | | ?????????????????????????????????? | | ?????????????????????????????????? | | ?????????????????????????????????? | | ??????????????????###????????????? | | ?????????????????##T#####????????? | | ?????????????????# #????????? | | ?????????????????# #????????? | | ??????????????#### #????????? | | ??????????????# #????????? | | ??????????????# ## #????????? | | ??????????????# % #????????? | | ??????????????# # = #????????? | | ??????????????# ########????????? | | ??????????????# #####???????????? | | ??????????????# ###?????????? | | ??????????????##### #?????????? | | ??????????????????# #?????????? | | ??????????????????### #?????????? | | ????????????????????# #?????????? | | ????????????????????# #?????????? | | ????????????????????# #?????????? | | ????????????????????# #######???? | | ????????????????????# s @ s #???? | | ????????????????????# ##### #???? | | ????????????????????# #?????????? | | ??????????????????? #?????????? | | ?????????????????? ?????????? | | ????????????????? ?????????? | | ???????????????? """?????????? | | ???????????????## """?????????? | | ????????????????# """ ????????? | | ????????????????## ?????????? | | ?????????????????## ????????????? | | ??????????????????## ????????????? | | ???????????????????# ????????????? | | ?????????????????????????????????? | | ?????????????????????????????????? | | ?????????????????????????????????? | | ?????????????????????????????????? | | ?????????????????????????????????? | | ?????????????????????????????????? | | ?????????????????????????????????? | | ?????????????????????????????????? | | ?????????????????????????????????? | | ?????????????????????????????????? | | ?????????????????????????????????? | | ?????????????????????????????????? | +----------------------------------------------------+ Best States ------------- Heat Dissipation 42 Energy Generation 14 Energy Capacity 250 Matter Stores 321 Matter Capacity 450 Sight Range 16 Robot Scan Range 14 Terrain Scan Density 10 Evasion (%) 55 Item Schematics ----------------- None Robot Schematics ------------------ None Fabricated ------------ Nothing Alien Tech Used ----------------- None Achievements -------------- None Challenges ------------ None Game ------ Seed AlphaFlakMembrane Manual? 0 Play Time 00:09:38 Cumulative 3.1 hours Start 2024.04.05 @ 16:23:28 End 2024.04.05 @ 16:35:50 Sessions 1 Manual Loads 0 Difficulty Rogue Special Mode None Game No. 6 Rogue 4 Adventurer 2 Explorer 0 Win Type - Total 0 Types 0/0/0/0/0/0/0/0/0 Lore% 2 Gallery% 9 Achievement% 10 Wizard Run 0 Options --------- Layout 1 ASCII 0 Keyboard 0 Movement Mouse Keybinds 0 Fullscreen 2 Font 24/Crisp Map View 50x35 Zoom Use 0% Tactical HUD 1 Map Filters NONE Filters NONE Steam 1 RUN: 9b25bca0-8195-4300-bed3-f328e51893e9